bitfinex/quotes_ETHUSD_20241003
["timestamp","ask_amount","ask_price","bid_price","bid_amount"]
[1727916770215,0.8227,2379.7,2379.3,4.20276]
[1727916770538,4.20258,2379.5,2379.1,0.420316]
[1727916770691,0.8227,2379.4,2378.9,4.20348]
[1727916771834,4.20159,2380.1,2378.9,4.20348]
[1727916771835,0.8227,2379.9,2379.3,4.20276]
[1727916772156,0.8227,2379.9,2379.5,4.20245]
[1727916772305,0.8227,2379.9,2379.4,0.08404687]
[1727916772502,0.8227,2379.9,2379.5,4.20254]
[1727916772819,0.8227,2379.9,2379.6,4.20229]
[1727916773404,0.8227,2379.9,2379.5,8.40501]
[1727916773616,0.8227,2379.9,2379.5,8.902774]
[1727916773906,0.8227,2379.9,2379.5,4.700304]
[1727916774293,0.8227,2379.9,2379.5,8.902774]
[1727916774734,0.8227,2379.9,2379.5,4.700304]
[1727916775235,5.02456,2379.9,2379.0,1.326568]
[1727916775406,0.8227,2379.9,2379.4,4.20263]
[1727916776143,5.02458,2379.9,2379.4,4.20263]
[1727916778932,0.8227,2379.9,2379.5,4.20247]
[1727916779331,0.8227,2379.9,2379.5,5.04298]
[1727916780143,0.03990528,2379.8,2379.5,5.04298]
[1727916780349,0.03990528,2379.8,2379.4,4.20263]
[1727916780722,0.03990528,2379.8,2379.6,4.20226]
[1727916782222,0.03990528,2379.8,2379.6,4.20235]
[1727916782677,4.74845581,2379.8,2379.3,4.20281]
[1727916782881,0.7592,2379.6,2379.2,4.20302]
[1727916783224,0.04007195,2379.5,2379.2,4.20302]
[1727916783733,0.04007195,2379.5,2379.3,4.20281]
[1727916784067,0.04007195,2379.5,2379.4,4.20274]
[1727916784225,0.04007195,2379.5,2379.4,4.28678448]
[1727916784427,0.7807,2380.0,2379.5,4.20242]
[1727916784623,0.7807,2380.0,2379.6,4.20222]
[1727916784951,0.04034189,2379.9,2379.5,8.40488]
[1727916785137,0.04034189,2379.9,2379.6,4.20235]
[1727916785542,0.04034189,2379.9,2379.5,4.20242]
[1727916785736,0.04034189,2379.9,2379.1,4.20317]
[1727916785737,0.54261508,2379.9,2379.2,4.20306]
[1727916785935,0.793,2379.5,2379.0,4.20344]
[1727916786229,4.20282,2379.4,2378.9,4.2036]
[1727916786542,4.74266315,2379.4,2378.9,4.2036]
[1727916786736,0.7886,2379.2,2378.8,4.20368]
[1727916786934,4.99183,2379.2,2378.7,4.20388]
[1727916787194,0.04021708,2379.1,2378.7,4.20388]
[1727916787465,0.96372279,2379.1,2378.3,8.2892]
[1727916787624,4.97216,2378.9,2378.4,4.20434]
[1727916787830,5.89375071,2378.9,2378.3,4.20453]
[1727916788074,0.03951425,2378.8,2378.5,4.20415]
[1727916788867,0.03951425,2378.8,2378.3,4.20454]
[1727916789071,4.20398,2378.7,2378.3,4.20454]
[1727916789227,4.20398,2378.7,2378.1,4.20489]
[1727916789425,0.8127,2378.5,2378.0,7.48]
[1727916789654,5.01711,2378.5,2377.9,8.4105]
[1727916790176,0.0393871,2378.4,2377.9,4.20522]
[1727916790374,0.0393871,2378.4,2377.7,4.20561]
[1727916790375,0.7928,2378.1,2377.7,4.20561]
[1727916790732,0.03892294,2378.0,2377.7,4.20561]
[1727916791074,0.03892294,2378.0,2377.5,4.20596]
[1727916791249,0.815,2377.8,2377.3,4.20643]
[1727916791660,0.0386131,2377.7,2377.3,4.20643]
[1727916792179,0.815,2377.8,2377.3,4.20643]
[1727916792337,0.03832218,2377.6,2377.3,8.41272]
[1727916792532,0.815,2377.8,2377.3,8.41272]
[1727916792841,0.0383183,2377.7,2377.3,8.41272]
[1727916793044,0.0383183,2377.7,2377.3,4.20636]
[1727916793251,0.815,2377.8,2377.3,4.20636]
[1727916793549,0.03836963,2377.7,2377.3,4.20636]
[1727916793758,5.02058,2377.8,2377.3,4.20636]
[1727916793947,0.03827264,2377.6,2377.3,4.20636]
[1727916794153,0.815,2377.8,2377.3,4.20636]
[1727916794336,0.7894,2378.6,2377.5,4.20606]
[1727916794535,4.20477,2378.3,2377.7,8.41131]
[1727916794885,4.20438,2378.5,2377.7,8.41131]
[1727916794886,8.40881,2378.5,2377.9,4.20527]
[1727916795178,4.24308258,2378.4,2377.9,4.20527]
[1727916797071,0.03856258,2378.4,2378.0,4.20512]
[1727916798107,0.03856258,2378.4,2378.1,4.20503]
[1727916798280,0.03856258,2378.4,2378.1,5.046059]
[1727916798487,0.7894,2378.6,2378.1,5.046059]
[1727916798488,0.7894,2378.6,2378.1,4.20495]
[1727916798810,0.7894,2378.6,2378.2,4.28893769]
[1727916799005,0.03872422,2378.5,2378.2,4.20485]
[1727916799385,4.24309422,2378.5,2378.0,4.20519]
[1727916799591,0.03872422,2378.5,2378.0,4.20519]
[1727916800387,0.03872422,2378.5,2378.1,4.20502]
[1727916802818,0.03872422,2378.5,2378.1,8.40996]
[1727916803030,0.03872422,2378.5,2378.2,4.20482]
[1727916803520,0.03872422,2378.5,2378.1,5.045936]
[1727916803521,0.03872422,2378.5,2378.3,4.20459]
[1727916803719,0.03872422,2378.5,2378.4,4.2045]
[1727916805720,4.99988,2378.9,2378.4,4.2045]
[1727916805882,0.03734633,2378.5,2378.4,4.2045]
[1727916806078,4.99988,2378.9,2378.4,4.2045]
[1727916806319,0.03734633,2378.5,2378.4,4.2045]
[1727916806522,4.99988,2378.9,2378.3,4.20459]
[1727916806707,0.03735744,2378.5,2378.3,8.40917]
[1727916807019,5.920215,2378.9,2378.4,4.20441]
[1727916807216,4.99988,2378.9,2378.4,4.20441]
[1727916807725,0.7962,2378.9,2378.4,4.20441]
[1727916807932,4.20381,2378.8,2378.3,4.20464]
[1727916808098,4.204,2378.7,2378.2,4.20477]
[1727916808546,0.7962,2378.9,2378.2,0.08408874]
[1727916808743,4.99991,2378.9,2378.4,4.20446]
[1727916808926,0.7962,2378.9,2378.4,4.20446]
[1727916809132,0.7962,2378.9,2378.5,4.20421]
[1727916810051,0.7962,2378.9,2378.4,4.20446]
[1727916810245,0.03758863,2378.8,2378.4,8.40887]
[1727916810634,0.03758863,2378.8,2378.6,8.40818]
[1727916810833,0.03758863,2378.8,2378.5,4.20431]
[1727916811051,4.24154863,2378.8,2378.3,4.2046]
[1727916811220,4.20417,2378.6,2378.1,11.68501]
[1727916811417,4.95503,2378.5,2378.1,7.48]
[1727916811621,4.99254926,2378.5,2378.1,7.48]
[1727916812047,0.78821926,2378.5,2378.1,7.48]
[1727916812324,0.78821926,2378.5,2378.3,4.20466]
[1727916812477,0.03751926,2378.5,2378.4,4.2045]
[1727916812779,0.7507,2378.8,2378.4,4.28858085]
[1727916812934,0.7507,2378.8,2378.6,4.20412]
[1727916813330,0.7507,2378.8,2378.4,4.2045]
[1727916813559,0.7507,2378.8,2378.5,4.20431]
[1727916813943,0.7507,2378.8,2378.4,4.20449]
[1727916814155,0.7507,2378.8,2378.4,4.2044]
[1727916814380,0.7507,2378.8,2378.5,4.20422]
[1727916815481,4.20422,2378.6,2378.2,4.20476]
[1727916815777,4.20407,2378.7,2378.2,8.40949]
[1727916816517,4.95451,2378.8,2378.3,4.20467]
[1727916816807,4.95451,2378.8,2378.4,4.20447]
[1727916817008,9.15842,2378.8,2378.3,4.20467]
[1727916818294,4.95451,2378.8,2378.3,4.20467]
[1727916818587,5.449961,2378.8,2378.3,4.20467]
[1727916820014,5.449961,2378.8,2378.4,4.2045]
[1727916820322,5.449961,2378.8,2378.3,4.20467]
[1727916820873,9.653851,2378.8,2378.3,4.20467]
[1727916821131,5.449961,2378.8,2378.2,4.20483]
[1727916821302,4.95451,2378.8,2378.3,4.20457]
[1727916822083,9.15841,2378.8,2378.3,4.20457]
[1727916822398,4.95451,2378.8,2378.3,4.20457]
[1727916823627,9.15839,2378.8,2378.3,4.20457]
[1727916823825,5.870349,2378.8,2378.3,4.20457]
[1727916825288,0.03743188,2378.7,2378.3,4.20457]
[1727916825705,5.870349,2378.8,2378.3,4.20457]
[1727916825900,0.03740993,2378.6,2378.3,4.20457]
[1727916826106,0.03745662,2378.7,2378.3,4.20457]
[1727916826302,0.03731881,2378.5,2378.4,4.2045]
[1727916826535,0.7507,2378.8,2378.5,4.20431]
[1727916827036,0.03741307,2378.7,2378.5,4.20431]
[1727916827222,0.7507,2378.8,2378.6,4.20415]
[1727916827610,0.7507,2378.8,2378.5,4.2042]
[1727916828206,0.7507,2378.8,2378.6,4.20413]
[1727916829242,0.7666,2379.6,2378.7,0.8233]
[1727916829393,4.20271,2379.5,2379.0,4.20334]
[1727916829594,0.7666,2379.6,2379.2,4.20308]
[1727916829854,4.27518483,2379.9,2379.5,4.20256]
[1727916829855,4.97605,2379.9,2379.5,4.20256]
[1727916830147,0.7741,2379.9,2379.6,4.20226]
[1727916830347,4.20135,2380.2,2379.6,4.28629934]
[1727916830348,4.97545,2380.2,2379.6,4.28629934]
[1727916830646,4.85408034,2380.2,2379.3,4.20282]
[1727916830829,0.7917,2379.9,2379.3,4.20282]
[1727916831158,4.20211,2379.8,2379.3,4.20282]
[1727916831292,5.47991653,2379.8,2379.1,8.40625]
[1727916831490,4.99437,2379.5,2379.0,4.20334]
[1727916831724,4.99437,2379.5,2379.2,4.20297]
[1727916831725,0.7917,2379.5,2379.2,4.20297]
[1727916831889,0.7917,2379.5,2379.0,4.20332]
[1727916832100,4.99431,2379.5,2379.0,4.20332]
[1727916832447,4.99431,2379.5,2379.0,8.40668]
[1727916832634,4.20282,2379.4,2378.9,4.20352]
[1727916832929,4.20295,2379.3,2378.8,4.20368]
[1727916833231,4.20295,2379.3,2378.8,8.40737]
[1727916833527,9.325433,2379.4,2378.9,4.20359]
[1727916833728,1.0117133,2379.3,2378.9,4.20359]
[1727916834231,0.7917,2379.5,2379.1,4.2031]
[1727916834538,0.7917,2379.5,2379.3,4.20282]
[1727916834741,0.8204,2379.7,2379.3,8.40564]
[1727916834910,0.8204,2379.7,2379.4,4.20271]
[1727916835315,3.0,2379.4,2378.6,1.24654199]
[1727916835628,0.8281,2379.3,2378.8,4.20362]
[1727916835947,0.8281,2379.3,2379.0,8.4068]
[1727916836126,0.8281,2379.5,2379.2,4.20309]
[1727916836462,5.03066,2379.5,2379.1,0.84068]
[1727916836737,5.03066,2379.5,2379.0,4.20336]
[1727916837641,4.2031,2379.2,2378.7,4.20388]
[1727916837841,4.2031,2379.2,2378.8,4.20377]
[1727916838601,4.2031,2379.2,2378.5,5.0143]
[1727916838823,4.2031,2379.2,2378.7,4.20397]
[1727916839215,8.40629,2379.2,2378.7,4.20397]
[1727916839548,4.2031,2379.2,2378.7,4.20397]
[1727916839920,8.4063,2379.2,2378.7,4.20397]
[1727916840133,4.2031,2379.2,2378.7,4.20397]
[1727916840335,4.20356,2379.0,2378.4,4.20448]
[1727916840623,8.40714,2379.0,2378.5,4.20432]
[1727916841266,5.02277,2379.1,2378.6,8.40808]
[1727916841422,0.8195,2379.1,2378.7,4.20396]
[1727916841624,5.02279,2379.1,2378.7,4.20396]
[1727916841822,0.771,2378.6,2378.0,4.64435456]
[1727916842020,4.20441,2378.5,2378.0,4.20512]
[1727916842329,4.20441,2378.5,2377.8,0.86545456]
[1727916842330,4.20451,2378.4,2377.9,4.20538]
[1727916842532,4.20451,2378.4,2377.9,5.872352]
[1727916842764,4.20451,2378.4,2377.8,4.20544]
[1727916842765,0.771,2378.1,2377.8,4.20544]
[1727916842933,0.771,2378.1,2377.9,4.20531]
[1727916843137,0.771,2378.5,2378.1,4.20493]
[1727916843336,0.771,2378.5,2377.8,0.08409239]
[1727916843544,4.20453,2378.4,2377.7,4.98452]
[1727916843749,4.2048,2378.3,2377.8,4.2054]
[1727916844140,4.20453,2378.4,2377.8,4.2054]
[1727916844348,4.20453,2378.4,2377.8,4.28950361]
[1727916844661,4.20453,2378.4,2377.8,4.76829917]
[1727916845025,0.771,2378.5,2378.0,4.2052]
[1727916845460,0.771,2378.5,2378.1,4.20502]
[1727916846644,0.771,2378.5,2377.8,0.47879556]
[1727916846838,3.0,2378.9,2377.7,4.20557]
[1727916846839,5.00827,2378.1,2377.7,4.20557]
[1727916847038,0.8032,2378.1,2377.7,8.41121]
[1727916847340,0.8032,2378.1,2377.8,4.20548]
[1727916847931,0.7698,2378.4,2377.9,4.20525]
[1727916848137,0.7698,2378.4,2378.0,0.9114971]
[1727916848367,0.7698,2378.7,2378.1,4.205]
[1727916848546,0.7698,2378.7,2378.3,4.20455]
[1727916848941,0.7698,2378.7,2378.2,4.20471]
[1727916849169,0.7698,2378.7,2378.2,8.40944]
[1727916849488,4.97379,2378.7,2378.2,5.128431]
[1727916849774,4.20417,2378.6,2378.2,5.128431]
[1727916850009,4.20442,2378.5,2377.8,11.68539]
[1727916850135,4.20442,2378.5,2378.0,4.20512]
[1727916850467,4.99929,2378.3,2377.8,7.48]
[1727916850639,4.99929,2378.3,2377.8,11.68556]
[1727916851480,0.7945,2378.3,2377.9,4.20538]
[1727916851681,0.7945,2378.3,2378.0,4.20518]
[1727916851983,0.7945,2378.3,2377.9,4.20529]
[1727916852887,0.7945,2378.3,2377.9,0.841091]
[1727916853057,0.7945,2378.3,2378.1,4.20493]
[1727916853762,0.7945,2378.3,2377.9,4.20526]
[1727916854721,0.7945,2378.3,2378.0,4.2052]
[1727916855003,4.20486,2378.2,2377.7,4.2056]
[1727916855211,8.40989,2378.2,2377.7,4.2056]
[1727916855512,4.20486,2378.2,2377.5,4.20596]
[1727916855718,0.8142,2378.0,2377.4,4.20613]
[1727916855879,0.8142,2377.8,2377.3,4.20634]
[1727916856394,0.8142,2377.8,2377.4,4.20617]
[1727916856977,0.8142,2377.8,2377.3,4.20634]
[1727916856978,0.8142,2377.8,2377.6,4.2058]
[1727916857167,4.206,2377.6,2377.1,1.68887108]
[1727916857366,4.20522,2378.0,2376.9,8.2317]
[1727916857367,0.816,2377.4,2376.9,8.2317]
[1727916857570,0.816,2377.4,2377.3,4.20645]
[1727916857789,5.02176,2377.7,2377.3,4.20645]
[1727916858819,0.816,2377.7,2377.3,4.20645]
[1727916859318,0.816,2377.7,2377.1,4.20666]
[1727916859319,4.20592,2377.6,2377.1,4.20666]
[1727916859468,4.708078,2377.6,2377.0,4.20696]
[1727916859671,4.708078,2377.6,2376.9,11.68701]
[1727916859672,4.20645,2377.3,2376.9,4.20713]
[1727916860372,4.20629,2377.4,2376.9,4.20713]
[1727916861171,4.20629,2377.4,2376.8,4.20733]
[1727916861172,4.20629,2377.4,2377.0,4.20698]
[1727916862268,4.20629,2377.4,2376.8,4.20733]
[1727916862269,0.7954,2377.2,2376.8,4.20732]
[1727916862707,5.00208,2377.2,2376.8,4.20732]
[1727916862893,0.7954,2377.2,2376.8,4.20732]
[1727916863099,0.7954,2377.2,2376.9,4.20712]
[1727916863313,0.7954,2377.2,2377.0,4.20688]
[1727916863610,0.7954,2377.2,2377.0,8.41377]
[1727916863823,0.7954,2377.2,2377.0,4.20688]
[1727916863972,0.7954,2377.2,2377.0,4.20686]
[1727916864516,0.7954,2377.2,2377.0,4.20694]
[1727916864712,0.7954,2377.2,2377.1,4.2068]
[1727916865210,0.7954,2377.4,2377.1,4.2068]
[1727916866984,0.7954,2377.4,2376.9,8.9937608]
[1727916867182,5.00167,2377.4,2376.9,4.7866408]
[1727916867399,5.00167,2377.4,2376.9,8.41405]
[1727916868202,5.00167,2377.4,2376.9,4.20698]
[1727916868915,5.00167,2377.4,2376.9,8.41406]
[1727916869615,5.00167,2377.4,2376.9,5.2073348]
[1727916869916,5.00167,2377.4,2376.9,9.4144048]
[1727916870416,5.00167,2377.4,2376.9,5.2073348]
[1727916870775,5.00167,2377.4,2377.0,4.20698]
[1727916871176,4.20646,2377.3,2376.9,5.2073348]
[1727916871410,5.127247,2377.3,2376.7,4.20736]
[1727916871732,4.20651,2377.3,2376.9,4.20709]
[1727916871885,4.20651,2377.3,2376.6,11.68755]
[1727916871886,4.20688,2377.1,2376.6,11.68755]
[1727916872091,4.20688,2377.1,2376.6,5.458975]
[1727916872402,4.20651,2377.3,2376.7,4.20747]
[1727916872607,4.20664,2377.2,2376.8,4.20733]
[1727916874474,4.2068,2377.1,2376.6,8.41511]
[1727916874656,0.7905,2377.0,2376.6,4.20761]
[1727916874856,0.7905,2377.0,2376.7,4.2075]
[1727916875066,0.7905,2377.0,2376.8,4.20724]
[1727916875838,0.8117,2377.3,2377.0,4.20686]
[1727916876863,0.8117,2377.3,2376.9,4.20714]
[1727916877076,0.8117,2377.3,2376.2,10.48]
[1727916877077,0.7577,2376.1,2375.6,7.48]
[1727916877249,0.7577,2376.1,2375.1,0.7732]
[1727916877250,7.79397628,2375.7,2375.1,0.7732]
[1727916877461,3.58458628,2375.2,2375.1,0.7732]
[1727916877643,3.58458628,2375.3,2374.9,4.21068]
[1727916877876,3.58458628,2375.3,2375.0,2.474388]
[1727916878883,3.58458628,2375.3,2374.9,4.21061]
[1727916879403,3.58458628,2375.1,2374.8,0.7732]
[1727916879544,4.20983,2375.4,2374.7,23.97093]
[1727916879545,4.21019,2375.2,2374.7,19.76]
[1727916879745,4.21036,2375.1,2374.7,19.76]
[1727916879946,5.02296,2375.1,2374.7,19.76]
[1727916880679,0.8126,2375.1,2374.7,19.76]
[1727916883082,5.02295,2375.1,2374.7,19.76]
[1727916884200,0.8126,2375.1,2374.7,19.76]
[1727916884551,5.02301,2375.1,2374.7,19.76]
[1727916887493,0.8126,2375.1,2374.7,19.76]
[1727916888192,5.02297,2375.1,2374.7,19.76]
[1727916889412,0.8126,2375.1,2374.7,19.76]
[1727916889560,4.21072,2374.9,2374.7,19.76]
[1727916890274,4.21072,2374.9,2374.4,23.97158]
[1727916890468,4.21072,2374.9,2374.5,19.76]
[1727916890673,8.63417088,2375.0,2374.5,23.9714]
[1727916890877,8.63417088,2375.0,2374.5,30.579967]
[1727916891184,8.63417088,2375.0,2374.5,26.368477]
[1727916891411,12.84480088,2375.0,2374.5,26.368477]
[1727916891629,8.63417088,2375.0,2374.5,26.368477]
[1727916892706,8.63417088,2375.0,2374.6,4.21121]
[1727916893080,4.42362088,2375.0,2374.6,4.21121]
[1727916893478,4.21027,2375.2,2374.8,4.21083]
[1727916893685,0.819,2375.4,2375.1,4.21032]
[1727916893923,8.0103,2375.6,2374.8,4.21075]
[1727916894106,8.41983,2375.4,2374.9,4.2107]
[1727916894436,4.20991,2375.4,2375.0,4.2105]
[1727916894780,4.21017,2375.2,2374.8,6.99426187]
[1727916895121,4.20991,2375.4,2374.8,4.2107]
[1727916895289,4.20991,2375.4,2375.0,4.21049]
[1727916896487,3.0,2375.4,2375.0,4.21049]
[1727916896695,3.0,2375.4,2375.0,9.263032]
[1727916896999,3.0,2375.4,2375.0,5.052542]
[1727916897234,3.0,2375.4,2375.0,4.21042]
[1727916897587,4.2099,2375.4,2374.8,4.21074]
[1727916897818,4.2099,2375.4,2374.9,4.21059]
[1727916899298,3.0,2375.5,2375.0,4.21049]
[1727916899503,7.20967,2375.5,2375.0,4.631549]
[1727916899692,7.20967,2375.5,2375.0,0.421059]
[1727916899884,7.20967,2375.5,2374.9,8.42119]
[1727916900232,7.20967,2375.5,2375.0,0.08420062]
[1727916900433,7.20967,2375.5,2374.9,4.21059]
[1727916900622,7.20967,2375.5,2375.1,4.21034]
[1727916900824,7.20967,2375.5,2375.0,4.21051]
[1727916901137,7.20967,2375.5,2375.0,4.631569]
[1727916901426,0.8007,2375.6,2375.1,0.08420063]
[1727916901588,0.8007,2375.6,2375.2,0.08419414]
[1727916901793,0.8007,2375.6,2375.2,4.63950941]
[1727916902031,3.59168295,2375.8,2375.2,4.63950941]
[1727916902032,8.58480295,2375.8,2375.3,4.20998]
[1727916902335,8.58480295,2375.8,2375.2,0.42943941]
[1727916902336,4.37568295,2375.8,2375.2,0.42943941]
[1727916902504,7.80143295,2375.5,2374.9,4.97947]
[1727916902707,0.07333672,2376.7,2374.6,19.76]
[1727916902708,4.37568295,2375.3,2374.6,19.76]
[1727916902889,6.59168295,2376.0,2374.1,0.86545456]
[1727916902890,4.21088,2374.8,2374.7,19.76]
[1727916903091,4.2112,2374.7,2374.2,19.76]
[1727916903328,4.21159,2374.4,2374.3,19.76]
[1727916903847,4.9949,2374.8,2374.3,23.97166]
[1727916904048,9.20594,2374.8,2374.3,23.97166]
[1727916904209,7.80282295,2374.7,2374.3,19.76]
[1727916905045,3.59168295,2374.7,2374.3,23.97175]
[1727916905254,0.784,2374.8,2374.3,23.97175]
[1727916905438,0.784,2374.8,2374.3,26.368925]
[1727916905814,4.99492,2374.8,2374.3,26.368925]
[1727916906211,0.784,2374.8,2374.3,30.580605]
[1727916906411,0.784,2374.8,2374.4,4.21157]
[1727916906611,0.784,2374.8,2374.3,26.368855]
[1727916906912,4.99501,2374.8,2374.3,23.97168]
[1727916907120,4.21109,2374.7,2374.3,19.76]
[1727916907328,4.21124,2374.6,2374.3,19.76]
[1727916908068,4.99501,2374.8,2374.4,19.76]
[1727916908221,4.99501,2374.8,2374.4,23.97158]
[1727916908728,4.99501,2374.8,2374.4,19.76]
[1727916909346,0.784,2374.8,2374.4,19.76]
[1727916909550,0.5208237,2374.7,2374.4,19.76]
[1727916909721,4.21107,2374.7,2374.4,19.76]
[1727916909915,3.784,2374.8,2374.4,19.76]
[1727916910122,4.21141,2374.5,2374.4,19.76]
[1727916911097,4.21131,2374.6,2374.4,19.76]
[1727916911394,4.21141,2374.5,2374.4,19.76]
[1727916912112,5.053682,2374.5,2374.4,19.76]
[1727916912267,8.805282,2374.5,2374.4,19.76]
[1727916912668,9.355282,2374.5,2374.4,19.76]
[1727916915003,4.21247,2373.9,2373.8,0.1173144]
[1727916915191,5.0339,2373.1,2372.7,14.05484895]
[1727916915387,4.21381,2373.2,2372.8,9.02094895]
[1727916916316,4.2142,2373.0,2372.8,9.02094895]
[1727916916515,4.21425,2372.9,2372.8,8.97094895]
[1727916916686,4.21416,2373.0,2372.8,8.97094895]
[1727916916895,7.21425,2372.9,2372.8,8.97094895]
[1727916917865,22.381033,2372.9,2372.8,8.97094895]
[1727916918413,23.149533,2372.9,2372.8,8.97094895]
[1727916918618,17.36967,2372.9,2372.8,8.97094895]
[1727916918805,17.36967,2372.9,2372.8,8.96430791]
[1727916919008,8.53275,2372.9,2372.8,8.96430791]
[1727916919375,12.27681,2372.9,2372.8,8.96430791]
[1727916919603,11.002964,2372.9,2372.8,8.96430791]
[1727916919804,11.118607,2372.9,2372.8,8.96430791]
[1727916920022,11.822607,2372.9,2372.8,8.96430791]
[1727916920192,8.53275,2372.9,2372.8,8.96430791]
[1727916920720,4.98275,2372.9,2372.8,8.96430791]
[1727916920890,5.02721,2373.2,2373.0,4.75014791]
[1727916921079,4.21389,2373.1,2373.0,4.75014791]
[1727916921278,5.02721,2373.2,2373.0,4.75014791]
[1727916921279,0.8134,2373.2,2373.0,4.75014791]
[1727916921523,5.02723,2373.2,2373.0,4.75014791]
[1727916921732,9.24105,2373.2,2373.0,4.75014791]
[1727916921946,5.02722,2373.2,2373.0,4.75014791]
[1727916922096,3.0,2373.1,2373.0,4.75014791]
[1727916925538,3.0,2373.3,2373.0,4.75014791]
[1727916925748,8.54849,2373.1,2373.0,4.75014791]
[1727916925897,12.97272695,2373.1,2373.0,4.75014791]
[1727916926251,8.43011,2372.5,2371.9,4.98272]
[1727916926748,4.21518,2372.4,2371.9,4.98272]
[1727916926909,4.21501,2372.5,2372.0,4.21582]
[1727916927234,4.21501,2372.5,2372.0,4.714072]
[1727916928341,4.21471,2372.7,2372.0,4.714072]
[1727916928638,3.0,2372.6,2372.1,4.21557]
[1727916929207,7.21481,2372.6,2372.1,4.21557]
[1727916929409,4.97652,2372.9,2372.2,4.21534]
[1727916929729,7.21403,2373.1,2372.2,4.97346]
[1727916929928,4.21272,2373.8,2372.1,0.9696342]
[1727916929929,5.02425,2373.6,2372.8,0.7581]
[1727916930452,4.21354,2373.3,2372.8,0.7581]
[1727916930663,4.21374,2373.2,2372.8,0.7581]
[1727916931160,4.21372,2373.2,2372.8,0.7581]
[1727916931343,8.42667,2373.5,2372.8,0.7581]
[1727916931547,4.21331,2373.5,2372.9,4.21411]
[1727916931730,4.21337,2373.4,2372.9,4.21411]
[1727916932063,4.21331,2373.5,2372.9,4.21411]
[1727916932368,4.21349,2373.4,2372.9,4.21411]
[1727916933265,3.0,2373.4,2372.9,4.21411]
[1727916933449,3.0,2373.5,2372.9,8.42826]
[1727916933659,3.0,2373.5,2372.9,4.21411]
[1727916933837,7.21321,2373.5,2372.9,4.21411]
[1727916934038,3.8112,2373.6,2372.9,4.21411]
[1727916934240,8.02421,2373.6,2373.0,4.21405]
[1727916934426,0.8112,2373.6,2372.9,0.497221]
[1727916934631,3.0,2373.4,2372.9,4.711451]
[1727916934870,3.0,2373.4,2372.9,4.21423]
[1727916935071,3.0,2373.4,2372.8,9.18671]
[1727916935225,3.0,2373.4,2372.9,4.21424]
[1727916935426,7.21337,2373.4,2372.8,9.18672]
[1727916935626,3.0,2373.4,2372.8,9.18672]
[1727916935855,3.0,2373.5,2372.9,4.21421]
[1727916936039,3.0,2373.5,2372.8,0.7581]
[1727916936245,3.0,2373.5,2373.0,4.21406]
[1727916936991,7.21321,2373.5,2373.0,4.21406]
[1727916937160,7.21321,2373.5,2372.0,4.21583]
[1727916937161,3.0,2373.5,2372.5,0.8151]
[1727916937365,7.2133,2373.5,2372.9,4.2142]
[1727916937691,7.2133,2373.5,2372.7,4.2145]
[1727916937692,3.0,2373.2,2372.8,4.2144]
[1727916939789,3.8112,2373.6,2372.5,0.8151]
[1727916939987,3.8112,2373.6,2373.2,4.21371]
[1727916940142,3.8112,2373.6,2372.8,0.7582]
[1727916940343,3.0,2373.4,2372.9,4.21412]
[1727916940623,7.21344,2373.4,2372.9,4.21412]
[1727916940743,7.21344,2373.4,2372.8,4.21442]
[1727916940944,4.21373,2373.2,2372.7,4.21446]
[1727916941144,7.21344,2373.4,2372.7,4.21446]
[1727916941344,7.21344,2373.4,2372.5,0.7582]
[1727916941345,7.21344,2373.4,2372.9,4.21414]
[1727916941552,3.0,2373.5,2372.9,4.21414]
[1727916941755,11.42652,2373.5,2372.9,4.21414]
[1727916941985,7.2132,2373.5,2372.9,4.21414]
[1727916942191,3.0,2373.7,2373.0,0.7809]
[1727916942394,0.8164,2373.9,2373.0,0.86517265]
[1727916942693,7.44,2374.2,2373.7,4.21266]
[1727916942861,4.21204,2374.2,2373.6,4.99389]
[1727916943189,4.2123,2374.0,2373.5,4.21306]
[1727916943759,4.2123,2374.0,2373.1,4.99463]
[1727916943760,0.8164,2374.0,2373.1,4.99463]
[1727916943965,4.21277,2373.8,2373.1,4.99463]
[1727916944348,8.42553,2373.8,2373.3,4.21352]
[1727916944560,8.42553,2373.8,2373.1,4.99463]
[1727916944561,4.21276,2373.8,2373.1,4.99463]
[1727916944811,4.21301,2373.6,2373.1,9.20843]
[1727916945152,3.8164,2374.0,2373.1,9.20843]
[1727916945153,4.21284,2373.7,2373.1,4.99463]
[1727916945463,4.9967,2373.5,2372.9,4.21421]
[1727916945666,0.7835,2373.5,2373.1,4.21378]
[1727916946659,0.7835,2373.5,2373.2,4.2137]
[1727916947183,0.7835,2373.5,2373.0,4.21398]
[1727916947184,0.7835,2373.5,2373.0,8.42789]
[1727916947359,0.7835,2373.5,2373.1,4.21388]
[1727916947554,0.7835,2373.5,2373.2,4.2136]
[1727916947759,0.7835,2373.5,2373.1,4.21388]
[1727916948154,7.21287,2373.7,2373.3,4.21353]
[1727916948360,0.7871,2373.7,2373.3,4.21353]
[1727916948557,7.21274,2373.8,2373.4,4.21326]
[1727916948558,3.0,2373.8,2373.4,4.21326]
[1727916948760,7.21267,2373.8,2373.3,5.03754]
[1727916949571,4.21287,2373.7,2373.3,5.03754]
[1727916949797,3.0,2373.6,2373.1,4.21374]
[1727916950114,3.0,2373.6,2373.2,4.21369]
[1727916950398,4.21287,2373.7,2373.3,4.21349]
[1727916950399,3.0,2373.7,2373.3,4.21349]
[1727916950907,4.21293,2373.7,2373.2,4.21369]